[Event "34th MPL National U14-ch 2022"]
[Site "Ahmedabad"]
[Date "2022.05.10"]
[Round "4.9"]
[White "Yuwan Das"]
[Black "Bharadia Yash"]
[Result "0-1"]
[ECO "B50"]
[WhiteElo "1493"]
[BlackElo "1924"]
[Annotator "TA"]
[PlyCount "72"]
[EventDate "2022.05.09"]
[EventType "swiss"]
[EventCountry "IND"]
[SourceTitle "playchess.com"]
[Source "ChessBase"]
[SourceQuality "1"]
[TimeControl "5400+30"]

{[%evp 12,72,-4,-6,0,-8,-4,-19,-12,-41,-12,-40,-31,-27,-26,-33,-25,-41,-25,-14,-16,-123,-121,-124,-118,-156,-139,-212,-178,-188,-163,-206,-210,-206,-206,-205,-199,-195,-199,-473,-445,-589,-589,-680,-641,-758,-764,-1035,-1031,-29984,-29985,-29985,-29986,-29986,-29987,-29987,-29986,-29988,-2056,-1812,-1795,-29993,-29994]} 1. e4 {[%emt 0:00:03]} c5 {[%emt 0:03:13]} 2. Nf3 {[%emt 0:00:11]} d6 {[%emt 0:00:07]} 3. c3 {[%emt 0:00:11]} Nf6 {[%emt 0:00:22]} 4. Be2 {[%emt 0:00:16]} g6 {[%emt 0:00:10]} 5. O-O {[%emt 0:00:12]} Bg7 {[%emt 0:00:04]} 6. d3 {[%emt 0:00:40]} O-O {[%emt 0:00:13]} 7. Nbd2 {[%emt 0:00:15] 7.Be3 is more advanced technology.} e5 {[%emt 0:00:41] B50: Sicilian: 2...d6, Miscellaneous.} 8. Re1 {[%emt 0:09:02]} Nc6 {[%emt 0:00:24]} 9. Bf1 {[%emt 0:06:14]} h6 {[%emt 0:05:23] The position is equal.} 10. Nc4 {[%emt 0:09:41] [#]} Be6 $146 {[%emt 0:01:17]} ({Predecessor:} 10... Re8 11. a4 Rb8 12. Bd2 d5 13. exd5 Nxd5 14. a5 b5 15. axb6 axb6 16. g3 b5 {1-0 (38) Yudasin,L (2558)-Wojtkiewicz,A (2565) New York 2003}) 11. d4 {[%emt 0:03:15]} cxd4 {[%emt 0:03:16]} (11... exd4 {seems wilder.} 12. cxd4 Nxd4 13. Nxd4 cxd4 14. Qxd4 Ng4) 12. cxd4 {[%emt 0:00:24]} exd4 {[%emt 0:03:37]} (12... Nxd4 {keeps more tension.} 13. Nxd4 exd4 14. Qxd4 Ng4) 13. Nxd4 {[%emt 0:11:16]} Nxd4 {[%emt 0:01:17]} 14. Qxd4 {[%emt 0:00:32]} Nxe4 {[%emt 0:12:47]} 15. Qxe4 {[%emt 0:07:33]} d5 {[%emt 0:00:08]} 16. Qf4 {[%emt 0:16:36] [#]} (16. Qc2 $1 $11 {keeps the balance.} dxc4 17. Bxc4) 16... g5 $1 $17 {[%emt 0:12:27][%mdl 64] Deflection. Black converts the advantage convincingly.} 17. Qg3 {[%emt 0:06:57] And now Ne5 would win.} dxc4 {[%emt 0:00:14]} 18. f4 {[%emt 0:07:47][%cal Rf4g5]} g4 $36 {[%emt 0:05:47][%mdl 2048] Black is in control. Black is more active.} 19. Kh1 {[%emt 0:02:24]} (19. f5 $17 Bxf5 20. Bxc4) 19... Qf6 {[%emt 0:02:58]} 20. Be3 {[%emt 0:09:38]} Rfd8 {[%emt 0:01:22]} ({Stronger than} 20... Qxb2 21. f5 Bxf5 22. Bxc4 $17) 21. Rac1 {[%emt 0:01:36]} b5 {[%emt 0:00:38]} ({Inferior is} 21... Qxb2 22. f5 Bxf5 23. Bxc4 $17) 22. Re2 {[%emt 0:01:38]} a6 {[%emt 0:00:34]} 23. Qf2 {[%emt 0:00:55]} Rac8 {[%emt 0:00:31]} 24. Bb6 {[%emt 0:00:47]} Rd7 {[%emt 0:00:25]} 25. b3 $2 {[%emt 0:01:23]} (25. Ba5) 25... c3 $19 {[%emt 0:00:36][%cal Bc4c3,Bc3c2][%mdl 32]} 26. Ba5 {[%emt 0:00:20]} Bf5 {[%emt 0:00:21] Inhibits Rec2.} 27. Qe1 {[%emt 0:01:41]} Kh7 {[%emt 0:00:43]} 28. Re5 {[%emt 0:00:58]} c2 {[%emt 0:00:21]} 29. g3 {[%emt 0:00:38]} Qg6 {[%emt 0:00:12]} 30. Re7 {[%emt 0:01:50]} Rxe7 {[%emt 0:01:39]} 31. Qxe7 {[%emt 0:00:06]} Be4+ {[%emt 0:01:44]} 32. Bg2 {[%emt 0:00:17]} Bxg2+ {[%emt 0:00:05]} 33. Kxg2 {[%emt 0:00:02]} Bb2 {[%emt 0:00:16]} 34. Bd2 {[%emt 0:00:47]} Bxc1 {[%emt 0:00:20]} (34... Qc6+ $142 35. Kf1 Bd4 36. Be3 {[#]} Rc7 $1 37. Qe8 Qxe8 38. Bxd4 Qe4 39. h4 gxh3 40. Kf2 Qxd4+ 41. Ke2 Qd5 42. Rxc2 Re7+ 43. Kf1 Qh1+ 44. Kf2 Qg2#) 35. Bxc1 {[%emt 0:00:02]} Qe6 {[%emt 0:00:14]} 36. Qb7 {[%emt 0:01:50]} Rd8 {[%emt 0:00:08] Weighted Error Value: White=0.99/Black=0.28 (precise)} 0-1

[Event "34th MPL National U14-ch 2022"]
[Site "Ahmedabad"]
[Date "2022.05.10"]
[Round "4.10"]
[White "Apoorv Kamble"]
[Black "Jaidambareesh N R"]
[Result "0-1"]
[ECO "B33"]
[WhiteElo "1846"]
[BlackElo "1521"]
[Annotator "NA RC COMBH"]
[PlyCount "106"]
[EventDate "2022.05.09"]
[EventType "swiss"]
[EventCountry "IND"]
[SourceTitle "playchess.com"]
[Source "ChessBase"]
[SourceQuality "1"]
[TimeControl "5400+30"]

1. e4 {[%emt 0:00:02]} c5 {[%emt 0:01:28]} 2. Nf3 {[%emt 0:00:03]} Nc6 {[%emt 0:00:06]} 3. d4 {[%emt 0:00:08]} cxd4 {[%emt 0:00:04]} 4. Nxd4 {[%emt 0:00:05]} Nf6 {[%emt 0:00:06]} 5. Nc3 {[%emt 0:00:07]} e5 {[%emt 0:00:04]} 6. Ndb5 {[%emt 0:00:07]} d6 {[%emt 0:00:05]} 7. Nd5 {[%emt 0:00:04]} Nxd5 {[%emt 0:00:05]} 8. exd5 {[%emt 0:00:06]} Ne7 {[%emt 0:00:04]} 9. c3 {[%emt 0:00:13]} f5 {[%emt 0:06:19]} 10. Bg5 {[%emt 0:03:42]} a6 {[%emt 0:00:46]} 11. Qa4 {[%emt 0:01:59]} Kf7 {[%emt 0:00:10]} 12. c4 {[%emt 0:21:53] [#]} (12. Qa3 $1 $14) 12... h6 {[%emt 0:00:38]} ({Better is} 12... Kg6 $1 $17 13. Bxe7 Bxe7) 13. Bd2 {[%emt 0:00:15]} f4 {[%emt 0:06:14]} 14. Nc3 {[%emt 0:03:17]} Bf5 {[%emt 1:21:21]} 15. Qb3 {[%emt 0:01:11]} Qd7 {[%emt 0:00:00]} 16. Na4 {[%emt 0:00:37]} Nc8 {[%emt 0:00:00]} 17. Be2 {[%emt 0:03:08]} Rb8 {[%emt 0:00:00]} 18. Nc3 {[%emt 0:00:58]} (18. O-O $14 {is superior.}) 18... Be7 {[%emt 0:00:00]} 19. g3 {[%emt 0:09:19]} fxg3 {[%emt 0:00:00]} 20. hxg3 {[%emt 0:01:20]} Rf8 {[%emt 0:00:00]} 21. a4 {[%emt 0:02:17]} Bf6 {[%emt 0:00:00]} 22. a5 {[%emt 0:00:53]} Kg8 {[%emt 0:00:00]} 23. Be3 {[%emt 0:01:56]} Kh8 {[%emt 0:00:00]} ({Black should try} 23... Bd8 $11) 24. Qd1 {[%emt 0:02:43]} e4 $2 {[%emt 0:00:00] [#]} (24... Kg8 $14) 25. g4 $1 {[%emt 0:03:21]} Bh7 {[%emt 0:00:00]} 26. Qd2 {[%emt 0:06:15]} (26. g5 $1 $18 {[%cal Rg5f6] is the precise move to win.} Bxg5 27. Bxg5 hxg5 28. Nxe4) 26... Qf7 $18 {[%emt 0:00:00]} (26... Kg8 $16) 27. O-O-O {[%emt 0:09:38]} b6 {[%emt 0:00:00]} 28. g5 {[%emt 0:00:57]} Be5 {[%emt 0:00:00]} 29. Bh5 {[%emt 0:12:31]} Qb7 {[%emt 0:00:00]} (29... Qc7 $16 {keeps fighting.}) 30. g6 {[%emt 0:00:32] [#]} bxa5 $1 {[%emt 0:00:00]} 31. gxh7 {[%emt 0:07:29] [#]} Ne7 $4 {[%emt 0:00:00] [#]} (31... Nb6 $1 $19 {[%cal Rb6c4]} 32. Be2 (32. Nxe4 $2 Nxc4 33. Rdg1 Nxd2 $19) 32... Nxd5 33. cxd5 Bxc3 34. Qxc3 Rfc8 35. Qxc8+ (35. Bc4 $2 Rxc4 36. Kd2 Rxc3 $19) 35... Qxc8+ 36. Kb1 Qc3) 32. Bg4 $2 {[%emt 0:03:22]} (32. Qc2 $1 $18) 32... Qb3 {[%emt 0:00:00]} (32... Ng6 $1 $11 {remains equal.}) 33. Be2 {[%emt 0:01:59]} Rxf2 {[%emt 0:00:00]} 34. Rde1 {[%emt 0:03:46]} Nf5 {[%emt 0:00:00]} 35. Bd1 {[%emt 0:01:11]} Qxb2+ {[%emt 0:00:00]} 36. Qxb2 {[%emt 0:00:01]} Rfxb2 {[%emt 0:00:00]} 37. Na4 {[%emt 0:00:16]} R2b4 {[%emt 0:00:00]} 38. Bb6 {[%emt 0:01:06]} Rxc4+ {[%emt 0:00:00]} 39. Kd2 {[%emt 0:00:19]} Bf4+ {[%emt 0:00:00]} 40. Ke2 {[%emt 0:00:21]} Ng3+ {[%emt 0:00:00]} 41. Kf2 {[%emt 0:00:08]} Nxh1+ {[%emt 0:00:00]} 42. Rxh1 {[%emt 0:00:01]} Rxa4 {[%emt 0:00:00]} 43. Bxa4 {[%emt 0:00:06]} Rxb6 {[%emt 0:14:30]} 44. Rh4 {[%emt 0:00:46]} Rb4 {[%emt 0:00:00]} 45. Bd7 {[%emt 0:01:43]} Bg5 {[%emt 0:00:00]} 46. Rh1 {[%emt 0:00:11]} Kxh7 {[%emt 0:00:00]} 47. Ra1 {[%emt 0:00:11]} e3+ {[%emt 0:00:00]} 48. Kf3 {[%emt 0:00:40]} Rf4+ {[%emt 0:00:00]} 49. Kg2 {[%emt 0:00:10]} Kg6 {[%emt 0:00:00]} 50. Bc8 {[%emt 0:02:07]} e2 {[%emt 0:00:00]} 51. Bxa6 {[%emt 0:00:00]} Rf1 {[%emt 0:00:00]} 52. Bd3+ {[%emt 0:00:00]} Kf6 {[%emt 0:00:00]} 53. Rxf1+ {[%emt 0:00:32]} exf1=Q+ {[%emt 0:00:00]} 0-1

[Event "34th MPL National U14-ch 2022"]
[Site "Ahmedabad"]
[Date "2022.05.11"]
[Round "5.1"]
[White "Kadam Om Manish"]
[Black "Koustuv Dash"]
[Result "1/2-1/2"]
[ECO "B10"]
[WhiteElo "2144"]
[BlackElo "1910"]
[Annotator "TA"]
[PlyCount "135"]
[EventDate "2022.05.09"]
[EventType "swiss"]
[EventCountry "IND"]
[SourceTitle "playchess.com"]
[Source "ChessBase"]
[SourceQuality "1"]
[TimeControl "5400+30"]

{[%evp 10,135,0,4,19,16,7,10,26,23,22,22,18,10,16,0,6,8,4,8,0,2,12,0,0,0,0,0,0,0,0,0,0,-14,-7,-10,-6,-12,-5,-14,-18,-29,-15,-23,0,-26,-24,-43,0,0,0,0,0,20,19,0,41,39,105,97,215,230,282,287,277,5,10,25,20,27,25,0,0,0,0,0,0,0,0,0,0,0,0,0,64,64,79,64,64,14,54,54,54,54,80,36,43,10,18,8,41,17,18,0,0,0,0,0,0,0,0,-95,0,0,0,0,0,0,0,0,0,-16,-27,-28,0,-26,0,-87]} 1. e4 {[%emt 0:00:02]} c6 {[%emt 1:31:00]} 2. c4 {[%emt 0:00:04]} d5 {[%emt 0:00:00]} 3. exd5 {[%emt 0:00:02]} cxd5 {[%emt 0:00:00]} 4. cxd5 {[%emt 0:00:01]} Nf6 {[%emt 0:00:00]} 5. Nc3 {[%emt 0:00:09]} Nxd5 {[%emt 0:00:00]} 6. Nf3 {[%emt 0:00:04]} g6 {[%emt 0:00:00] B10: Caro-Kann: 2 d3 and 2 c4.} 7. Qb3 {[%emt 0:00:03]} Nb6 {[%emt 0:00:00]} 8. Bb5+ {[%emt 0:00:04]} Bd7 {[%emt 0:00:00] [#]} 9. a4 $146 {[%emt 0:00:04][%cal Ba2a4,Ba4a5][%mdl 32]} ({Predecessor:} 9. Ne5 e6 10. Ne4 Bc6 11. d3 Qd4 12. Nf6+ Ke7 13. Nfg4 Bxb5 14. Bg5+ Kd6 15. Nxf7+ {0-1 (36) Riehle,M (2336)-Svane,R (2615) Magdeburg 2021}) 9... Bg7 {[%emt 0:00:00]} 10. a5 {[%emt 0:00:11]} Nc8 {[%emt 0:00:00]} 11. Bxd7+ {[%emt 0:00:08]} Qxd7 {[%emt 0:00:00]} 12. d4 {[%emt 0:00:03][%cal Bd2d4,Bd4d5][%mdl 32] Black should prevent Ne5.} O-O {[%emt 0:00:00]} 13. O-O {[%emt 0:00:04]} Nd6 {[%emt 0:00:00]} 14. Bf4 {[%emt 0:00:44]} Nc6 {[%emt 0:00:00]} 15. Be5 {[%emt 0:04:27]} Nf5 {[%emt 0:00:00][%cal Rf5d4]} 16. Bxg7 {[%emt 0:01:30]} Kxg7 {[%emt 0:00:00]} 17. d5 {[%emt 0:00:07]} Ncd4 {[%emt 0:00:00]} 18. Nxd4 {[%emt 0:00:06]} Nxd4 {[%emt 0:00:00]} 19. Qc4 {[%emt 0:02:01]} Nf5 {[%emt 0:00:00]} 20. Rfe1 $1 {[%emt 0:01:28]} Rfe8 {[%emt 0:00:00]} 21. Qc5 {[%emt 0:10:53]} Qd6 {[%emt 0:00:00]} 22. Qb5 {[%emt 0:00:23]} Qa6 {[%emt 0:00:00]} 23. Qa4 {[%emt 0:07:25]} Rac8 {[%emt 0:00:00]} 24. Rad1 {[%emt 0:01:14]} Qc4 {[%emt 0:00:00]} 25. Qa3 {[%emt 0:08:52]} Red8 {[%emt 0:00:00]} 26. Re4 {[%emt 0:01:31]} Qc5 {[%emt 0:00:00]} 27. Qa1 {[%emt 0:02:20]} h5 {[%emt 0:00:00]} 28. Rde1 {[%emt 0:01:24]} Kg8 {[%emt 0:00:00]} 29. h3 {[%emt 0:01:33]} Rd7 {[%emt 0:00:00]} 30. Qa4 {[%emt 0:00:26] Prevents b5.} Rcd8 {[%emt 0:00:00]} 31. Re5 {[%emt 0:02:31]} Qd4 {[%emt 0:00:00] Prevents Qf4.} 32. Qc2 {[%emt 0:01:56]} Qc5 {[%emt 0:00:00]} 33. Qd2 {[%emt 0:06:33][%cal Oe5f5]} Ng7 {[%emt 0:04:26]} (33... Qxa5 $2 34. d6 Qb6 35. Rxf5 $1 {[%mdl 512]} Qxd6 36. Qxd6 (36. Rd5 Qc6 $18) 36... Rxd6 37. Ra5 $18) (33... Qd6 $14) 34. Qh6 $16 {[%emt 0:04:23]} f6 {[%emt 0:00:40]} (34... Qd6 $16) 35. R5e3 $18 {[%emt 0:00:44]} Kf7 {[%emt 0:01:00]} 36. Rg3 {[%emt 0:00:45]} g5 {[%emt 0:00:01]} 37. Ree3 $2 {[%emt 0:19:24]} (37. Qh7 $6 Qxa5 38. Rge3 Qc5 $16) ({Better is} 37. Ne4 $18 {Threatening mate with Rxg5.} Qxa5 {[#]} 38. Nxg5+ $1 {[%mdl 512]} (38. Nc3 Re8 $14) 38... fxg5 39. Re5 Rxd5 40. Rf3+ (40. Rgxg5 Rxe5 41. Qg6+ Kf8 $16) 40... Ke8 41. Qg6+ (41. Rxd5 Qe1+ 42. Kh2 Rxd5 $17) 41... Kd7 42. Rxd5+ (42. Rxe7+ Kc8 $16) 42... Qxd5 43. Rd3 Qxd3 44. Qxd3+ Ke8 45. Qb3) 37... Rxd5 {[%emt 0:01:17]} 38. Nxd5 {[%emt 0:01:05]} Rxd5 {[%emt 0:00:02]} 39. Re1 {[%emt 0:00:37] Against Rd1. With the idea Rc3.} Re5 {[%emt 0:03:23]} 40. Rxe5 {[%emt 0:07:18] The board is on fire.} Qxe5 $11 {[%emt 0:00:29][%mdl 4096] Endgame KQR-KQN} 41. Re3 {[%emt 0:05:52] Prevents Qe1+.} Qxb2 {[%emt 0:01:39]} 42. Qh7 $36 {[%emt 0:00:03][%mdl 2048] White has good play.} Qa1+ {[%emt 0:00:43]} 43. Kh2 {[%emt 0:00:03] Qe4 is the strong threat.} Qxa5 {[%emt 0:00:07]} 44. Qb1 {[%emt 0:00:13]} Qd5 {[%emt 0:01:52]} 45. Kg1 {[%emt 0:00:51]} (45. Qh7 Qf5 46. Qxf5 Nxf5 $17) 45... b6 {[%emt 0:01:29]} 46. Ra3 {[%emt 0:00:10]} a5 {[%emt 0:00:23]} (46... Qd7 $11) 47. Qxb6 $14 {[%emt 0:00:28]} Qd1+ {[%emt 0:00:55]} 48. Kh2 {[%emt 0:00:02]} a4 {[%emt 0:00:08]} 49. Qb4 {[%emt 0:01:21]} ({White should try} 49. Ra2 $14) 49... Qe2 {[%emt 0:01:10]} 50. Re3 {[%emt 0:02:48]} (50. Rxa4 Qxf2 51. Ra8 h4 $11) 50... Qxf2 {[%emt 0:00:23]} 51. Rxe7+ {[%emt 0:00:39]} Kg6 {[%emt 0:00:23]} 52. Qc4 {[%emt 0:03:25][%mdl 1024] Hoping for Qf7+. White has strong compensation.} Kh6 {[%emt 0:01:08]} (52... Qf4+ $2 53. Qxf4 gxf4 54. Re4 $18 (54. Ra7 Ne6 $18)) 53. Re2 {[%emt 0:03:31]} (53. Qc7 $5 {[%cal Re7g7]} h4 54. Rd7 $16 (54. Rxg7 Qg3+ 55. Kh1 Qe1+ 56. Kh2 Qg3+ 57. Kh1 Qe1+ 58. Kh2 Qg3+ $11)) 53... Qa7 {[%emt 0:00:31]} 54. Qc6 {[%emt 0:00:32]} Kg6 {[%emt 0:00:42]} 55. Qe4+ {[%emt 0:00:30]} Kh6 {[%emt 0:00:24]} 56. Ra2 {[%emt 0:00:58] Active counter play!} Qc7+ {[%emt 0:00:30]} 57. Kg1 {[%emt 0:00:23]} Qc1+ {[%emt 0:00:47]} 58. Kf2 {[%emt 0:00:10]} Qc5+ {[%emt 0:00:15]} 59. Qe3 {[%emt 0:00:23]} Qf5+ {[%emt 0:00:08]} 60. Ke2 {[%emt 0:00:45]} (60. Qf3 $11 {remains equal.}) 60... Ne6 {[%emt 0:00:12]} (60... Qd5 $17 61. Rd2 Qxg2+ 62. Qf2 Qe4+ 63. Qe3 Qb4) 61. Rd2 $11 {[%emt 0:01:04]} Nf4+ {[%emt 0:00:26]} 62. Ke1 {[%emt 0:00:02]} Qb1+ {[%emt 0:00:28]} 63. Kf2 {[%emt 0:00:09]} Qh1 {[%emt 0:00:31]} 64. Qf3 {[%emt 0:00:30]} Qc1 {[%emt 0:00:56]} 65. Ra2 {[%emt 0:00:28]} Qc5+ {[%emt 0:00:45]} 66. Kg3 {[%emt 0:00:42]} Qe5 {[%emt 0:00:33] ( -> ...Nd3+)} (66... Qg1 $5 {[%cal Rh5h4]} 67. h4 (67. Rxa4 $2 h4+ 68. Kg4 f5+ 69. Kxf5 Qc5+ 70. Ke4 Qc2+ 71. Kd4 Qxa4+ $19) 67... Ng6 68. hxg5+ (68. Qxf6 $2 gxh4+ 69. Kf3 Qf1+ 70. Ke3 Qxf6 $19) 68... fxg5 $17) 67. Kf2 {[%emt 0:00:39]} Qc5+ {[%emt 0:00:30]} (67... Qd4+ $11 68. Kg3 Qg1) 68. Kg3 {[%emt 0:00:10] Weighted Error Value: White=0.18 (very precise) /Black=0.14 (very precise)} 1/2-1/2

[Event "34th MPL National U14-ch 2022"]
[Site "Ahmedabad"]
[Date "2022.05.11"]
[Round "5.2"]
[White "John Veny Akkarakaran"]
[Black "Daakshin Arun"]
[Result "1-0"]
[ECO "B92"]
[WhiteElo "1855"]
[BlackElo "2016"]
[Annotator "TA"]
[PlyCount "74"]
[EventDate "2022.05.09"]
[EventType "swiss"]
[EventCountry "IND"]
[SourceTitle "playchess.com"]
[Source "ChessBase"]
[SourceQuality "1"]
[TimeControl "5400+30"]

{[%evp 17,74,18,20,0,0,10,18,16,22,0,0,0,0,0,0,0,0,0,0,-4,0,6,3,12,72,19,138,96,168,174,177,165,171,75,162,148,152,146,129,144,133,138,136,69,78,67,47,50,142,147,705,148,29988,29989,29988,29989,29991,29992,29999]} 1. e4 {[%emt 0:00:17]} c5 {[%emt 0:00:04]} 2. Nf3 {[%emt 0:00:09]} d6 {[%emt 0:00:05]} 3. d4 {[%emt 0:00:06]} cxd4 {[%emt 0:00:04]} 4. Nxd4 {[%emt 0:00:06]} Nf6 {[%emt 0:00:03]} 5. Nc3 {[%emt 0:00:10]} a6 {[%emt 0:00:03]} 6. Be2 {[%emt 0:00:15]} e5 {[%emt 0:00:04]} 7. Nb3 {[%emt 0:00:07]} Be7 {[%emt 0:00:05]} 8. O-O {[%emt 0:00:14]} O-O {[%emt 0:00:03]} 9. Qd3 {[%emt 0:00:24]} Be6 {[%emt 0:00:37]} 10. Bd2 {[%emt 0:00:15] B92: Sicilian Najdorf: 6 Be2.} Qc8 {[%emt 0:05:47]} 11. Rac1 {[%emt 0:13:13]} a5 {[%emt 0:12:43] [#]} 12. a4 $146 {[%emt 0:23:28] The position is equal.} ({Predecessor:} 12. Nd5 Nxd5 13. exd5 Bf5 14. Qe3 Bd8 15. c4 a4 16. Na1 Nd7 17. Nc2 Bb6 18. Qg5 {0-1 (36) Kazakov,K (2356)-Amonatov,F (2624) Astana 2017}) 12... Qc6 {[%emt 0:09:16]} 13. f4 {[%emt 0:03:04]} (13. Qf3) 13... Na6 {[%emt 0:14:21]} 14. Qf3 {[%emt 0:15:50]} Nb4 {[%emt 0:14:10][%cal Ob4c2]} 15. Bb5 {[%emt 0:07:57]} Qc7 {[%emt 0:01:04][%cal Ob4c2]} 16. f5 {[%emt 0:05:10]} Bc4 {[%emt 0:01:58]} 17. Bxc4 {[%emt 0:05:35]} Qxc4 {[%emt 0:00:18]} 18. Bg5 {[%emt 0:01:01]} Rfd8 {[%emt 0:06:20]} (18... h6 19. Bxf6 Bxf6) 19. Nd2 {[%emt 0:04:18]} Qc6 {[%emt 0:00:50]} 20. b3 {[%emt 0:02:03]} Rac8 {[%emt 0:06:31]} (20... d5) (20... d5 $11 {remains equal.}) 21. Nc4 {[%emt 0:01:35]} (21. Bxf6 Bxf6 22. Nc4) (21. Bxf6 $16 Bxf6 22. Nc4) 21... Rd7 {[%emt 0:03:27]} (21... d5 22. Bxf6 Qc5+ 23. Kh1 dxc4 24. Bxg7 Kxg7 25. f6+ Kh8 26. fxe7 Qxe7) (21... d5 $11 {keeps the balance.} 22. Bxf6 Qc5+ 23. Kh1 dxc4 24. Bxg7 Kxg7 25. f6+ Kh8 26. fxe7 Qxe7) 22. Rfd1 {[%emt 0:05:01]} (22. Bxf6 Bxf6 23. Rcd1) 22... Bd8 {[%emt 0:06:24]} (22... d5 23. exd5 (23. Nxe5 Qc5+ 24. Be3 Qxc3) 23... Nbxd5 24. Bxf6 Nxf6) (22... d5 $16 23. exd5 (23. Nxe5 Qc5+ 24. Be3 Qxc3 $17) 23... Nbxd5 24. Nxe5 Qc5+ 25. Kf1 (25. Kh1 Nxc3 26. Nxd7 Nxd7 $11) 25... Nxc3 26. Rxd7 Nxd7 27. Nxd7 Qd4 28. Bxe7 (28. Qxb7 $2 Rd8 $19) 28... Ne4 29. Nf6+ (29. Rd1 Nd2+ 30. Rxd2 Qxd2 $11) 29... Nxf6 30. Bxf6 Qxf6) 23. Bxf6 $18 {[%emt 0:03:27]} Bxf6 {[%emt 0:00:49]} 24. Nd5 {[%emt 0:00:29]} Bg5 {[%emt 0:01:12] [#] aiming for ...Nxd5.} 25. Nxb4 {[%emt 0:00:27] Pair of Knights!} (25. Ndb6) (25. Ndb6 $18 {has better winning chances.}) 25... Qc5+ {[%emt 0:01:18]} (25... axb4 26. Rb1 Bd8) (25... axb4 $16 26. Rb1 Bd8) 26. Kh1 {[%emt 0:01:20]} Qxb4 {[%emt 0:01:43]} (26... Bxc1 27. Nd3 Qc6 28. Nxc1) (26... Bxc1 $2 27. Nd3 Qc6 28. Nxc1 $18) 27. Rb1 {[%emt 0:00:40]} Rxc4 {[%emt 0:00:50]} 28. bxc4 {[%emt 0:00:08]} Qxc4 {[%emt 0:00:07]} 29. Qd3 {[%emt 0:00:45]} Qxa4 {[%emt 0:00:24]} 30. Rb5 {[%emt 0:01:40]} (30. Qb5 Qxb5 31. Rxb5) (30. Qb5 $16 Qxb5 31. Rxb5) 30... h6 $14 {[%emt 0:01:29]} 31. Rdb1 {[%emt 0:01:37]} Rc7 {[%emt 0:01:04]} 32. c3 {[%emt 0:02:24]} (32. Qxd6 Qxc2 33. Re1 a4) (32. Qxd6 Qxc2 33. Re1 a4 $15) 32... Rc4 {[%emt 0:02:00]} (32... Kh7) (32... Kh7 $14) 33. Rxb7 $16 {[%emt 0:02:17] Threatens to win with Qd5.} (33. Qxd6 Rxc3 34. Qd5 (34. Rxe5 Qc4) 34... Qa3) (33. Qxd6 $6 Rxc3 34. Qd5 (34. Rxe5 Qc4 $11) 34... Qa3 $11) 33... Rxe4 $2 {[%emt 0:00:41][%mdl 8192] [#]} (33... Qc6) (33... Qc6 $16) 34. Qxd6 $2 $40 {[%emt 0:00:31][%mdl 128] White is out for blood.} (34. Qd5 Qc4 35. Rb8+ Kh7 36. Qa8) (34. Rxf7 $3 $18 {[%mdl 512] and White stays clearly on top. White threatens Qd5 and mate.} Qc6 (34... Rd4 35. cxd4) 35. Ra7 (35. Rc7 Re1+ 36. Rxe1 Qxc7 $16)) 34... Qa2 {[%emt 0:01:05][%mdl 8192] This costs Black the game.} (34... Rh4 35. Qd3 (35. Qxe5 Bf4) 35... Qc4 36. Qxc4 (36. Qd7 Rxh2+ 37. Kxh2 Qh4+ 38. Kg1 Be3+ 39. Kf1 Qf2#) 36... Rxc4) (34... Rh4 $16 35. Qd3 (35. Qxe5 Bf4 $11) 35... Qc4 36. Qxc4 (36. Qd7 {gets mated.} Rxh2+ 37. Kxh2 Qh4+ 38. Kg1 Be3+ 39. Kf1 Qf2#) 36... Rxc4) 35. Rb8+ {[%emt 0:00:43] White mates.} ({Weaker is} 35. Qc6 Rb4 36. R7xb4 (36. R1xb4 axb4 37. g3 Qf2 $17) 36... axb4 $11) 35... Kh7 {[%emt 0:00:06]} 36. Qf8 {[%emt 0:01:44][%csl Gb8][%cal Rf8g8]} Bd8 {[%emt 0:02:33]} 37. Qxd8 {[%emt 0:00:00][%csl Gb8][%cal Rd8h8]} Rf4 {[%emt 0:00:56] Weighted Error Value: White=0.36/Black=0.39} 1-0